[Event "FAI-ch Open 2021"]
[Site "Klaksvik"]
[Date "2021.03.28"]
[Round "2.2"]
[White "Olsen, Kaj"]
[Black "Gregersen, Einar"]
[Result "0-1"]
[ECO "B90"]
[WhiteElo "1677"]
[BlackElo "1766"]
[Annotator "NA"]
[PlyCount "96"]
[EventDate "2021.03.27"]
[EventType "swiss"]
[EventCountry "FAI"]
[SourceTitle "playchess.com"]
[Source "ChessBase"]
[SourceQuality "1"]
[TimeControl "40/5400+30:900+30"]

1. e4 {[%emt 0:00:00]} c5 {[%emt 0:00:00]} 2. Nf3 {[%emt 0:00:00]} d6 {[%emt 0:00:00]} 3. d4 {[%emt 0:00:00]} cxd4 {[%emt 0:00:00]} 4. Nxd4 {[%emt 0:00:05]} Nf6 {[%emt 0:00:11]} 5. Nc3 {[%emt 0:00:18]} a6 {[%emt 0:00:21]} 6. Be3 {[%emt 0:00:27]} e6 {[%emt 0:02:56]} 7. f3 {[%emt 0:01:10]} b5 {[%emt 0:02:00]} 8. Qd2 {[%emt 0:00:45]} Bb7 {[%emt 0:00:48]} 9. g4 {[%emt 0:02:21]} Qc7 {[%emt 0:03:18]} 10. O-O-O {[%emt 0:00:38]} Nc6 {[%emt 0:02:49]} 11. h4 {[%emt 0:06:59]} Be7 {[%emt 0:02:40]} 12. Be2 {[%emt 0:12:35]} Ne5 {[%emt 0:04:02]} 13. g5 {[%emt 0:01:15]} Nfd7 {[%emt 0:00:31]} 14. h5 {[%emt 0:06:16]} Nb6 {[%emt 0:18:54]} 15. f4 {[%emt 0:24:53]} Nec4 {[%emt 0:01:04]} 16. Qd3 {[%emt 0:00:46]} Rc8 {[%emt 0:12:33]} 17. Bg4 {[%emt 0:05:24]} Nxb2 {[%emt 0:02:53]} 18. Kxb2 {[%emt 0:03:23]} Qxc3+ {[%emt 0:00:08]} 19. Qxc3 {[%emt 0:00:06]} Na4+ {[%emt 0:00:06]} 20. Kc1 {[%emt 0:00:32]} Nxc3 {[%emt 0:00:24]} 21. Rde1 {[%emt 0:01:07]} Bxe4 {[%emt 0:02:17]} 22. Rh2 {[%emt 0:01:43]} d5 {[%emt 0:02:05]} 23. Kb2 {[%emt 0:01:00]} Na4+ {[%emt 0:03:58]} 24. Kb1 {[%emt 0:01:33]} Ba3 {[%emt 0:00:57]} 25. Rh3 {[%emt 0:05:01]} Bc5 {[%emt 0:03:58]} 26. Rh2 {[%emt 0:01:48]} Nb6 {[%emt 0:02:10]} 27. Ree2 {[%emt 0:02:14]} Ke7 {[%emt 0:02:46]} 28. Rh3 {[%emt 0:05:48]} Nc4 {[%emt 0:01:48]} 29. Bf2 {[%emt 0:02:35]} Na3+ {[%emt 0:02:38]} 30. Kb2 {[%emt 0:00:49]} b4 {[%emt 0:04:08]} 31. f5 {[%emt 0:02:09]} Bxd4+ {[%emt 0:04:12]} 32. Bxd4 {[%emt 0:00:08]} Nc4+ {[%emt 0:00:47]} 33. Kc1 {[%emt 0:01:11]} Rhg8 {[%emt 0:01:55]} 34. Bxg7 {[%emt 0:00:57]} Kd6 {[%emt 0:02:34]} 35. f6 {[%emt 0:00:53]} Ne5 {[%emt 0:02:17]} 36. g6 {[%emt 0:05:56]} fxg6 {[%emt 0:01:49]} 37. h6 {[%emt 0:00:18]} Rc7 {[%emt 0:01:15]} 38. Rg3 {[%emt 0:02:33]} Rgc8 {[%emt 0:01:06]} 39. Bh3 {[%emt 0:03:05]} Rxc2+ {[%emt 0:01:46]} 40. Rxc2 {[%emt 0:00:00]} Rxc2+ {[%emt 0:00:00]} 41. Kd1 {[%emt 0:00:43]} Nf7 {[%emt 0:03:50]} 42. a3 {[%emt 0:06:26]} Rc3 {[%emt 0:00:35]} 43. Rxc3 {[%emt 0:00:14]} bxc3 {[%emt 0:00:06]} 44. Bf1 {[%emt 0:00:17]} a5 {[%emt 0:04:06]} 45. Bb5 {[%emt 0:00:05]} g5 {[%emt 0:00:22]} 46. Be8 {[%emt 0:00:31]} Bg6 {[%emt 0:00:08]} 47. Bxf7 {[%emt 0:02:10]} Bxf7 {[%emt 0:00:06]} 48. Kc2 {[%emt 0:00:09]} d4 {[%emt 0:00:48]} 0-1

[Event "FAI-ch Open 2021"]
[Site "Klaksvik"]
[Date "2021.03.28"]
[Round "2.4"]
[White "Rose, Kenneth T"]
[Black "Danielsen, Andrias"]
[Result "0-1"]
[ECO "B40"]
[WhiteElo "1996"]
[BlackElo "1911"]
[Annotator "NA"]
[PlyCount "76"]
[EventDate "2021.03.27"]
[EventType "swiss"]
[EventCountry "FAI"]
[SourceTitle "playchess.com"]
[Source "ChessBase"]
[SourceQuality "1"]
[TimeControl "40/5400+30:900+30"]

1. e4 {[%emt 0:00:00]} c5 {[%emt 0:02:20]} 2. Nf3 {[%emt 0:00:25]} e6 {[%emt 0:00:11]} 3. d4 {[%emt 0:02:11]} cxd4 {[%emt 0:00:55]} 4. Nxd4 {[%emt 0:01:21]} Nf6 {[%emt 0:00:49]} 5. Bd3 {[%emt 0:02:19]} a6 {[%emt 0:01:16]} 6. Nc3 {[%emt 0:03:13]} Qc7 {[%emt 0:01:22]} 7. h3 {[%emt 0:03:04]} Bb4 {[%emt 0:09:34]} 8. Bd2 {[%emt 0:01:11]} O-O {[%emt 0:03:12]} 9. Qe2 {[%emt 0:06:10]} d6 {[%emt 0:02:14]} 10. O-O-O {[%emt 0:02:51]} Nc6 {[%emt 0:08:24]} 11. Nb3 {[%emt 0:06:51]} Ne5 {[%emt 0:02:44]} 12. f4 {[%emt 0:05:25]} Nxd3+ {[%emt 0:00:06]} 13. Qxd3 {[%emt 0:00:17]} Rd8 {[%emt 0:03:15]} 14. Ne2 {[%emt 0:06:58]} Bxd2+ {[%emt 0:01:24]} 15. Rxd2 {[%emt 0:00:34]} d5 {[%emt 0:05:41]} 16. exd5 {[%emt 0:03:41]} Rxd5 {[%emt 0:05:08]} 17. Qe3 {[%emt 0:07:24]} Rxd2 {[%emt 0:03:03]} 18. Nxd2 {[%emt 0:03:52]} b5 {[%emt 0:01:14]} 19. g3 {[%emt 0:02:53]} Bb7 {[%emt 0:00:44]} 20. Rg1 {[%emt 0:01:54]} Rc8 {[%emt 0:00:15]} 21. Qc3 {[%emt 0:02:13]} Qd6 {[%emt 0:04:48]} 22. Qd4 {[%emt 0:03:21]} Nd5 {[%emt 0:00:41]} 23. Nc3 {[%emt 0:07:30]} Qc6 {[%emt 0:02:27]} 24. a3 {[%emt 0:09:51]} Nxc3 {[%emt 0:00:13]} 25. bxc3 {[%emt 0:00:53]} Qxc3 {[%emt 0:00:08]} 26. Qxc3 {[%emt 0:00:02]} Rxc3 {[%emt 0:00:22]} 27. Kb2 {[%emt 0:00:16]} Rc7 {[%emt 0:04:57]} 28. c3 {[%emt 0:02:10]} Kf8 {[%emt 0:00:10]} 29. Nb3 {[%emt 0:00:39]} Ke7 {[%emt 0:00:53]} 30. Rd1 {[%emt 0:00:35]} Bd5 {[%emt 0:01:58]} 31. h4 {[%emt 0:01:14]} Bxb3 {[%emt 0:01:01]} 32. Kxb3 {[%emt 0:00:09]} a5 {[%emt 0:00:21]} 33. Rd4 {[%emt 0:00:47]} f6 {[%emt 0:01:34]} 34. a4 {[%emt 0:01:48]} bxa4+ {[%emt 0:00:20]} 35. Rxa4 {[%emt 0:00:11]} Rc5 {[%emt 0:00:34]} 36. Rc4 {[%emt 0:01:08]} Rxc4 {[%emt 0:01:42]} 37. Kxc4 {[%emt 0:00:41]} e5 {[%emt 0:00:18]} 38. fxe5 {[%emt 0:04:00]} fxe5 {[%emt 0:00:22]} 0-1

[Event "FAI-ch Open 2021"]
[Site "Klaksvik"]
[Date "2021.03.28"]
[Round "2.5"]
[White "Hojgaard, Brandur"]
[Black "Petersen, Elias"]
[Result "1-0"]
[ECO "A80"]
[WhiteElo "1720"]
[BlackElo "1403"]
[Annotator "NA"]
[PlyCount "83"]
[EventDate "2021.03.27"]
[EventType "swiss"]
[EventCountry "FAI"]
[SourceTitle "playchess.com"]
[Source "ChessBase"]
[SourceQuality "1"]
[TimeControl "40/5400+30:900+30"]

1. d4 {[%emt 0:06:15]} f5 {[%emt 0:01:47]} 2. Nf3 {[%emt 0:01:49]} Nf6 {[%emt 0:00:32]} 3. c4 {[%emt 0:02:05]} g6 {[%emt 0:00:42]} 4. Nc3 {[%emt 0:00:14]} Bg7 {[%emt 0:00:21]} 5. Bg5 {[%emt 0:02:15]} d6 {[%emt 0:01:57]} 6. e3 {[%emt 0:04:00]} Nbd7 {[%emt 0:01:58]} 7. Bd3 {[%emt 0:03:36]} O-O {[%emt 0:03:11]} 8. O-O {[%emt 0:01:45]} Qe8 {[%emt 0:01:13]} 9. Qe2 {[%emt 0:06:06]} e5 {[%emt 0:01:32]} 10. Bc2 {[%emt 0:06:14]} Nh5 {[%emt 0:03:16]} 11. Nd5 {[%emt 0:16:19]} Rb8 {[%emt 0:06:54]} 12. Nxc7 {[%emt 0:01:02]} Qf7 {[%emt 0:00:13]} 13. Bb3 {[%emt 0:01:59]} Nc5 {[%emt 0:03:12]} 14. dxc5 {[%emt 0:03:05]} Qxc7 {[%emt 0:00:12]} 15. cxd6 {[%emt 0:00:45]} Qd7 {[%emt 0:00:50]} 16. Be7 {[%emt 0:02:21]} Re8 {[%emt 0:00:42]} 17. c5+ {[%emt 0:01:12]} Kh8 {[%emt 0:01:10]} 18. Qc2 {[%emt 0:03:35]} Rxe7 {[%emt 0:02:42]} 19. dxe7 {[%emt 0:01:38]} Qxe7 {[%emt 0:00:04]} 20. Rad1 {[%emt 0:02:21]} Be6 {[%emt 0:01:05]} 21. Bxe6 {[%emt 0:00:57]} Qxe6 {[%emt 0:00:08]} 22. a3 {[%emt 0:00:39]} Rc8 {[%emt 0:00:19]} 23. b4 {[%emt 0:00:41]} Qa6 {[%emt 0:01:40]} 24. Qb3 {[%emt 0:00:56]} Rf8 {[%emt 0:03:25]} 25. Rd2 {[%emt 0:00:40]} Bf6 {[%emt 0:00:38]} 26. Rfd1 {[%emt 0:00:38]} Ng7 {[%emt 0:00:19]} 27. Rd6 {[%emt 0:01:55]} Qb5 {[%emt 0:01:39]} 28. a4 {[%emt 0:01:57]} Qe8 {[%emt 0:01:54]} 29. Rd7 {[%emt 0:05:36]} e4 {[%emt 0:01:15]} 30. Ne1 {[%emt 0:01:33]} Qc8 {[%emt 0:00:24]} 31. Qd5 {[%emt 0:01:24]} Qc6 {[%emt 0:01:42]} 32. Qxc6 {[%emt 0:01:21]} bxc6 {[%emt 0:00:11]} 33. Rxa7 {[%emt 0:00:33]} Rb8 {[%emt 0:00:17]} 34. b5 {[%emt 0:01:47]} cxb5 {[%emt 0:00:08]} 35. axb5 {[%emt 0:00:08]} Ne8 {[%emt 0:00:32]} 36. b6 {[%emt 0:01:45]} Kg8 {[%emt 0:01:09]} 37. Nc2 {[%emt 0:00:57]} h5 {[%emt 0:00:35]} 38. Nd4 {[%emt 0:00:18]} Kf8 {[%emt 0:00:56]} 39. Nc6 {[%emt 0:00:53]} Rc8 {[%emt 0:00:13]} 40. b7 {[%emt 0:00:00]} Rc7 {[%emt 0:00:00]} 41. b8=Q {[%emt 0:00:41]} Rxc6 {[%emt 0:00:32]} 42. Ra8 {[%emt 0:00:20]} 1-0

[Event "FAI-ch Open 2021"]
[Site "Klaksvik"]
[Date "2021.03.28"]
[Round "2.6"]
[White "Morkore, Rogvi"]
[Black "Joensen, Jakup F."]
[Result "1/2-1/2"]
[ECO "B00"]
[WhiteElo "1685"]
[BlackElo "1690"]
[Annotator "NA"]
[PlyCount "64"]
[EventDate "2021.03.27"]
[EventType "swiss"]
[EventCountry "FAI"]
[SourceTitle "playchess.com"]
[Source "ChessBase"]
[SourceQuality "1"]
[TimeControl "40/5400+30:900+30"]

1. e4 {[%emt 0:00:00]} Nc6 {[%emt 0:00:00]} 2. d4 {[%emt 0:00:24]} e5 {[%emt 0:00:00]} 3. d5 {[%emt 0:01:04]} Nce7 {[%emt 0:00:02]} 4. Nf3 {[%emt 0:01:14]} Ng6 {[%emt 0:00:31]} 5. h4 {[%emt 0:01:38]} h5 {[%emt 0:02:05]} 6. c4 {[%emt 0:01:55]} Nf6 {[%emt 0:00:44]} 7. Bg5 {[%emt 0:04:05]} Be7 {[%emt 0:02:14]} 8. Nc3 {[%emt 0:05:18]} a6 {[%emt 0:07:35]} 9. Be2 {[%emt 0:02:48]} d6 {[%emt 0:02:08]} 10. g3 {[%emt 0:19:19]} Bg4 {[%emt 0:06:41]} 11. Nh2 {[%emt 0:10:23]} Bxe2 {[%emt 0:03:26]} 12. Qxe2 {[%emt 0:00:05]} Qd7 {[%emt 0:03:47]} 13. Nf1 {[%emt 0:06:47]} Rb8 {[%emt 0:06:00]} 14. a4 {[%emt 0:02:58]} Ng4 {[%emt 0:17:27]} 15. Bxe7 {[%emt 0:00:33]} Nxe7 {[%emt 0:05:13]} 16. f3 {[%emt 0:07:49]} Nf6 {[%emt 0:00:49]} 17. b4 {[%emt 0:03:10]} c6 {[%emt 0:03:52]} 18. Ne3 {[%emt 0:02:41]} cxd5 {[%emt 0:03:49]} 19. Nexd5 {[%emt 0:02:00]} Nexd5 {[%emt 0:02:30]} 20. Nxd5 {[%emt 0:05:06]} Nxd5 {[%emt 0:01:18]} 21. exd5 {[%emt 0:02:35]} Rc8 {[%emt 0:01:30]} 22. Kf2 {[%emt 0:01:50]} Qc7 {[%emt 0:01:23]} 23. c5 {[%emt 0:00:01]} dxc5 {[%emt 0:01:41]} 24. Rac1 {[%emt 0:00:47]} c4 {[%emt 0:04:05]} 25. Rhe1 {[%emt 0:02:06]} O-O {[%emt 0:05:50]} 26. Qxe5 {[%emt 0:04:20]} Qb6+ {[%emt 0:01:10]} 27. Kg2 {[%emt 0:00:21]} Qxb4 {[%emt 0:00:48]} 28. Qxh5 {[%emt 0:00:06]} Rfe8 {[%emt 0:01:25]} 29. Qg4 {[%emt 0:03:09]} Qd2+ {[%emt 0:05:13]} 30. Kh3 {[%emt 0:00:05]} Qxd5 {[%emt 0:01:01]} 31. Rxe8+ {[%emt 0:04:33]} Rxe8 {[%emt 0:01:14]} 32. Rxc4 {[%emt 0:01:29]} b5 {[%emt 0:03:56]} 1/2-1/2

[Event "FAI-ch Open 2021"]
[Site "Klaksvik"]
[Date "2021.03.28"]
[Round "2.9"]
[White "Joensen, Henrik W."]
[Black "Tidemann-Andersen, Leif"]
[Result "1-0"]
[ECO "B50"]
[WhiteElo "1535"]
[BlackElo "1661"]
[Annotator "NA"]
[PlyCount "67"]
[EventDate "2021.03.27"]
[EventType "swiss"]
[EventCountry "FAI"]
[SourceTitle "playchess.com"]
[Source "ChessBase"]
[SourceQuality "1"]
[TimeControl "40/5400+30:900+30"]

1. e4 {[%emt 0:14:46]} c5 {[%emt 0:00:00]} 2. Nf3 {[%emt 0:00:08]} d6 {[%emt 0:00:00]} 3. c3 {[%emt 0:00:10]} a6 {[%emt 0:00:19]} 4. d4 {[%emt 0:00:16]} cxd4 {[%emt 0:00:23]} 5. cxd4 {[%emt 0:00:08]} Bd7 {[%emt 0:00:56]} 6. Bc4 {[%emt 0:02:34]} e6 {[%emt 0:00:18]} 7. a4 {[%emt 0:00:58]} Be7 {[%emt 0:00:48]} 8. O-O {[%emt 0:00:35]} Nc6 {[%emt 0:03:23]} 9. Nc3 {[%emt 0:00:41]} Nf6 {[%emt 0:02:01]} 10. d5 {[%emt 0:02:13]} Ne5 {[%emt 0:00:32]} 11. Nxe5 {[%emt 0:00:58]} dxe5 {[%emt 0:00:20]} 12. dxe6 {[%emt 0:04:12]} Bxe6 {[%emt 0:00:51]} 13. Bxe6 {[%emt 0:01:28]} fxe6 {[%emt 0:01:05]} 14. Qb3 {[%emt 0:00:32]} Qc8 {[%emt 0:03:50]} 15. Bg5 {[%emt 0:02:53]} O-O {[%emt 0:00:38]} 16. Rac1 {[%emt 0:00:36]} Qe8 {[%emt 0:03:23]} 17. Qxe6+ {[%emt 0:00:49]} Kh8 {[%emt 0:00:22]} 18. Qxe5 {[%emt 0:00:40]} Rd8 {[%emt 0:01:13]} 19. Rfd1 {[%emt 0:01:59]} h6 {[%emt 0:03:43]} 20. Bxf6 {[%emt 0:01:59]} Rxd1+ {[%emt 0:00:30]} 21. Rxd1 {[%emt 0:00:38]} Rxf6 {[%emt 0:00:28]} 22. Qc7 {[%emt 0:04:34]} Kh7 {[%emt 0:02:05]} 23. Nd5 {[%emt 0:01:29]} Rd6 {[%emt 0:03:39]} 24. b3 {[%emt 0:04:19]} Qh5 {[%emt 0:04:22]} 25. Re1 {[%emt 0:04:08]} Re6 {[%emt 0:02:32]} 26. Nxe7 {[%emt 0:03:15]} Rxe4 {[%emt 0:02:22]} 27. Qc2 {[%emt 0:00:50]} Qa5 {[%emt 0:17:11]} 28. Qxe4+ {[%emt 0:00:25]} Kh8 29. Rc1 Qd8 {[%emt 0:03:53]} 30. Rc8 {[%emt 0:00:51]} Qxc8 {[%emt 0:00:20]} 31. Nxc8 {[%emt 0:00:10]} b6 {[%emt 0:00:19]} 32. Nd6 {[%emt 0:00:44]} b5 {[%emt 0:00:39]} 33. Nf5 {[%emt 0:00:57]} bxa4 {[%emt 0:00:28]} 34. Qe7 {[%emt 0:00:30]} 1-0

[Event "FAI-ch Open 2021"]
[Site "Klaksvik"]
[Date "2021.03.29"]
[Round "3.1"]
[White "Skaale, Janus"]
[Black "Gregersen, Einar"]
[Result "1-0"]
[ECO "B99"]
[WhiteElo "1809"]
[BlackElo "1766"]
[Annotator "NA RC"]
[PlyCount "57"]
[EventDate "2021.03.27"]
[EventType "swiss"]
[EventCountry "FAI"]
[SourceTitle "playchess.com"]
[Source "ChessBase"]
[SourceQuality "1"]
[TimeControl "40/5400+30:900+30"]

1. e4 {[%emt 0:00:00]} c5 {[%emt 0:00:00]} 2. Nf3 {[%emt 0:00:07]} d6 {[%emt 0:00:00]} 3. d4 {[%emt 0:00:30]} cxd4 {[%emt 0:00:00]} 4. Nxd4 {[%emt 0:00:10]} Nf6 {[%emt 0:00:04]} 5. Nc3 {[%emt 0:00:39]} a6 {[%emt 0:00:17]} 6. Bg5 {[%emt 0:01:42]} e6 {[%emt 0:00:09]} 7. f4 {[%emt 0:00:46]} Be7 {[%emt 0:00:31]} 8. Qf3 {[%emt 0:01:05]} Qc7 {[%emt 0:01:02]} 9. O-O-O {[%emt 0:01:37]} Nbd7 {[%emt 0:00:22]} 10. Bd3 {[%emt 0:01:05]} b5 {[%emt 0:05:03]} 11. Rhe1 {[%emt 0:00:57]} Bb7 {[%emt 0:04:54]} 12. Qg3 {[%emt 0:04:20]} O-O-O {[%emt 0:09:23]} 13. Bxb5 {[%emt 0:05:03]} axb5 {[%emt 0:02:20]} 14. Ndxb5 {[%emt 0:00:32]} Qc5 {[%emt 0:09:16]} 15. e5 {[%emt 0:06:19]} dxe5 {[%emt 0:08:21]} 16. fxe5 {[%emt 0:01:38]} Nd5 {[%emt 0:10:14]} 17. Bxe7 {[%emt 0:04:02]} Qxe7 {[%emt 0:00:23]} 18. Nd6+ {[%emt 0:09:12]} Kb8 {[%emt 0:00:22]} 19. Nxd5 {[%emt 0:01:18]} exd5 {[%emt 0:03:17]} 20. e6 {[%emt 0:04:59]} Nb6 {[%emt 0:05:09]} 21. Nxf7+ {[%emt 0:13:12]} Ka8 {[%emt 0:01:08]} 22. Rd3 {[%emt 0:05:20]} Nc4 {[%emt 0:00:56]} 23. a3 {[%emt 0:09:10]} Rhf8 {[%emt 0:03:59]} 24. Nxd8 {[%emt 0:00:21]} Rxd8 {[%emt 0:00:08]} 25. Rf3 {[%emt 0:02:05]} Nd6 {[%emt 0:05:53]} 26. Qe5 {[%emt 0:06:49]} Ne4 {[%emt 0:02:38]} 27. Rf7 {[%emt 0:04:07]} Qh4 {[%emt 0:00:40]} 28. g3 {[%emt 0:01:18]} Qxh2 {[%emt 0:00:36]} 29. Rxe4 {[%emt 0:01:09]} 1-0

[Event "FAI-ch Open 2021"]
[Site "Klaksvik"]
[Date "2021.03.29"]
[Round "3.3"]
[White "Hojgaard, Brandur"]
[Black "Tummasarson, Flovin M."]
[Result "0-1"]
[ECO "D02"]
[WhiteElo "1720"]
[BlackElo "1743"]
[Annotator "NA RC"]
[PlyCount "106"]
[EventDate "2021.03.27"]
[EventType "swiss"]
[EventCountry "FAI"]
[SourceTitle "playchess.com"]
[Source "ChessBase"]
[SourceQuality "1"]
[TimeControl "40/5400+30:900+30"]

1. d4 {[%emt 0:00:00]} d5 {[%emt 0:00:04]} 2. Nf3 {[%emt 0:00:00]} Nf6 {[%emt 0:00:20]} 3. Bf4 {[%emt 0:00:15]} c5 {[%emt 0:01:04]} 4. e3 {[%emt 0:01:10]} e6 {[%emt 0:00:21]} 5. Nbd2 {[%emt 0:01:42]} Nc6 {[%emt 0:00:44]} 6. c3 {[%emt 0:00:13]} Bd6 {[%emt 0:01:07]} 7. Bg3 {[%emt 0:00:25]} O-O {[%emt 0:03:25]} 8. Bd3 {[%emt 0:01:59]} b6 {[%emt 0:00:55]} 9. Ne5 {[%emt 0:07:46]} Bb7 {[%emt 0:07:48]} 10. Qe2 {[%emt 0:02:00]} Qc7 {[%emt 0:03:10]} 11. f4 {[%emt 0:04:08]} Ne7 {[%emt 0:06:59]} 12. Bh4 {[%emt 0:19:32]} Ne4 {[%emt 0:03:01]} 13. O-O {[%emt 0:11:21]} Nf5 {[%emt 0:12:28]} 14. Be1 {[%emt 0:05:19]} Be7 {[%emt 0:02:46]} 15. Rf3 {[%emt 0:06:49]} Nfd6 {[%emt 0:02:37]} 16. Rh3 {[%emt 0:01:51]} f5 {[%emt 0:01:39]} 17. Bxe4 {[%emt 0:12:16]} dxe4 {[%emt 0:06:48]} 18. Qh5 {[%emt 0:01:20]} h6 {[%emt 0:00:49]} 19. Rg3 {[%emt 0:04:06]} Rf6 {[%emt 0:04:50]} 20. Rh3 {[%emt 0:02:31]} Rff8 {[%emt 0:04:08]} 21. Rg3 {[%emt 0:01:46]} Rf6 {[%emt 0:01:21]} 22. Rh3 {[%emt 0:00:21]} Bc6 {[%emt 0:09:07]} 23. Nxc6 {[%emt 0:03:32]} Qxc6 {[%emt 0:00:10]} 24. Bh4 {[%emt 0:01:02]} Rf7 {[%emt 0:00:45]} 25. Bxe7 {[%emt 0:00:36]} Rxe7 {[%emt 0:00:09]} 26. dxc5 {[%emt 0:07:15]} Qxc5 {[%emt 0:02:20]} 27. Qe2 {[%emt 0:00:34]} e5 {[%emt 0:02:22]} 28. fxe5 {[%emt 0:00:31]} Qxe5 {[%emt 0:00:27]} 29. Nc4 {[%emt 0:00:59]} Qb5 {[%emt 0:00:24]} 30. b3 {[%emt 0:00:26]} Rc8 {[%emt 0:01:50]} 31. g4 {[%emt 0:02:05]} Nxc4 {[%emt 0:00:53]} 32. bxc4 {[%emt 0:00:37]} Qxc4 {[%emt 0:01:10]} 33. Qxc4+ {[%emt 0:00:34]} Rxc4 {[%emt 0:00:07]} 34. gxf5 {[%emt 0:00:16]} Rf7 {[%emt 0:00:47]} 35. Rd1 {[%emt 0:01:24]} Rxc3 {[%emt 0:02:18]} 36. Rd4 {[%emt 0:00:42]} Re7 {[%emt 0:01:11]} 37. Kf2 {[%emt 0:00:34]} Rc2+ {[%emt 0:01:32]} 38. Kg3 {[%emt 0:00:10]} Rxa2 {[%emt 0:00:25]} 39. Kf4 {[%emt 0:00:27]} Rf2+ {[%emt 0:00:08]} 40. Kg4 {[%emt 0:00:00]} a5 {[%emt 0:00:00]} 41. Rg3 {[%emt 0:03:05]} Re5 {[%emt 0:05:54]} 42. f6 {[%emt 0:03:36]} Rxf6 {[%emt 0:01:48]} 43. Rd8+ {[%emt 0:00:25]} Kh7 {[%emt 0:00:50]} 44. Kh3 {[%emt 0:01:42]} Rf3 {[%emt 0:01:14]} 45. Kg2 {[%emt 0:00:37]} Rxg3+ {[%emt 0:00:23]} 46. Kxg3 {[%emt 0:00:21]} a4 {[%emt 0:00:32]} 47. Kf4 {[%emt 0:00:08]} Ra5 {[%emt 0:01:53]} 48. Kxe4 {[%emt 0:00:17]} a3 {[%emt 0:00:39]} 49. Rd1 {[%emt 0:00:20]} a2 {[%emt 0:03:31]} 50. Ra1 {[%emt 0:00:10]} g5 {[%emt 0:01:23]} 51. Kd4 {[%emt 0:00:34]} Kg7 {[%emt 0:00:37]} 52. e4 {[%emt 0:00:10]} Kf7 {[%emt 0:00:18]} 53. e5 {[%emt 0:00:32]} Ke6 {[%emt 0:00:13]} 0-1

[Event "FAI-ch Open 2021"]
[Site "Klaksvik"]
[Date "2021.03.29"]
[Round "3.4"]
[White "Bertholdsen, Bjarki"]
[Black "Gregersen, Hedin"]
[Result "0-1"]
[ECO "B06"]
[WhiteElo "1353"]
[BlackElo "1842"]
[Annotator "NA RC"]
[PlyCount "40"]
[EventDate "2021.03.27"]
[EventType "swiss"]
[EventCountry "FAI"]
[SourceTitle "playchess.com"]
[Source "ChessBase"]
[SourceQuality "1"]
[TimeControl "40/5400+30:900+30"]

1. e4 {[%emt 0:00:00]} g6 {[%emt 0:00:00]} 2. d4 {[%emt 0:00:11]} Bg7 {[%emt 0:00:00]} 3. Be3 {[%emt 0:00:33]} d6 {[%emt 0:01:35]} 4. Nc3 {[%emt 0:03:03]} Nf6 {[%emt 0:02:10]} 5. f3 {[%emt 0:02:53]} a6 {[%emt 0:02:02]} 6. Bc4 {[%emt 0:10:34]} b5 {[%emt 0:01:38]} 7. Bb3 {[%emt 0:00:25]} O-O {[%emt 0:04:31]} 8. Qd2 {[%emt 0:05:36]} Nc6 {[%emt 0:01:27]} 9. Bh6 {[%emt 0:12:42]} Bxh6 {[%emt 0:05:37]} 10. Qxh6 {[%emt 0:00:47]} Nxd4 {[%emt 0:01:46]} 11. O-O-O {[%emt 0:03:35]} e5 {[%emt 0:04:23]} 12. h4 {[%emt 0:08:34]} c6 {[%emt 0:09:23]} 13. Nh3 {[%emt 0:10:09]} Bxh3 {[%emt 0:07:31]} 14. Rxh3 {[%emt 0:00:42]} b4 {[%emt 0:08:05]} 15. Na4 {[%emt 0:01:59]} Nxb3+ {[%emt 0:01:30]} 16. axb3 {[%emt 0:00:53]} Nh5 {[%emt 0:02:05]} 17. Qd2 {[%emt 0:10:20]} Nf4 {[%emt 0:03:11]} 18. Rh2 {[%emt 0:01:43]} Qa5 {[%emt 0:12:42]} 19. Qxd6 {[%emt 0:07:28]} Rad8 {[%emt 0:01:25]} 20. Qxc6 {[%emt 0:04:14]} Ne2+ {[%emt 0:00:39]} 0-1

[Event "FAI-ch Open 2021"]
[Site "Klaksvik"]
[Date "2021.03.29"]
[Round "3.5"]
[White "Joensen, Jakup F."]
[Black "Olsen, Kaj"]
[Result "1/2-1/2"]
[ECO "C29"]
[WhiteElo "1690"]
[BlackElo "1677"]
[Annotator "NA RC"]
[PlyCount "54"]
[EventDate "2021.03.27"]
[EventType "swiss"]
[EventCountry "FAI"]
[SourceTitle "playchess.com"]
[Source "ChessBase"]
[SourceQuality "1"]
[TimeControl "40/5400+30:900+30"]

1. e4 {[%emt 0:00:00]} e5 {[%emt 0:00:00]} 2. Nc3 {[%emt 0:00:00]} Nf6 {[%emt 0:00:00]} 3. f4 {[%emt 0:00:02]} d5 {[%emt 0:00:09]} 4. fxe5 {[%emt 0:00:29]} Nxe4 {[%emt 0:00:13]} 5. d3 {[%emt 0:00:45]} Nxc3 {[%emt 0:02:55]} 6. bxc3 {[%emt 0:00:49]} Nc6 {[%emt 0:01:13]} 7. Nf3 {[%emt 0:02:51]} Be7 {[%emt 0:04:32]} 8. d4 {[%emt 0:02:14]} O-O {[%emt 0:02:27]} 9. Be2 {[%emt 0:02:42]} f6 {[%emt 0:02:57]} 10. exf6 {[%emt 0:01:16]} Bxf6 {[%emt 0:00:16]} 11. O-O {[%emt 0:00:41]} Be6 {[%emt 0:05:42]} 12. Be3 {[%emt 0:04:46]} Qd7 {[%emt 0:04:56]} 13. Qd2 {[%emt 0:04:24]} Ne7 {[%emt 0:09:18]} 14. Rab1 {[%emt 0:11:14]} b6 {[%emt 0:02:54]} 15. Bb5 c6 {[%emt 0:00:46]} 16. Bd3 {[%emt 0:04:21]} Bf5 {[%emt 0:07:28]} 17. Bg5 {[%emt 0:13:37]} Ng6 {[%emt 0:06:05]} 18. Bxf5 {[%emt 0:03:11]} Qxf5 {[%emt 0:00:08]} 19. Bxf6 {[%emt 0:01:22]} Qxf6 {[%emt 0:03:27]} 20. Rbe1 {[%emt 0:05:57]} Rae8 {[%emt 0:07:54]} 21. Ne5 {[%emt 0:03:16]} Qd6 {[%emt 0:01:55]} 22. Nxg6 {[%emt 0:05:06]} Qxg6 {[%emt 0:07:02]} 23. Rxf8+ {[%emt 0:01:48]} Rxf8 {[%emt 0:00:43]} 24. Qe2 {[%emt 0:00:42]} Qf6 {[%emt 0:01:14]} 25. Qe6+ {[%emt 0:08:40]} Qf7 {[%emt 0:04:50]} 26. Qe2 {[%emt 0:01:48]} Qf6 {[%emt 0:00:59]} 27. Qe6+ {[%emt 0:00:34]} Qf7 {[%emt 0:00:26]} 1/2-1/2